Cogmind - Beta 10.2 @@@ ROGUE MODE // 2021.05.30 @ 10:54:26 Player: ChromeKnight Result: Self-destructed Performance ------------- Evolutions (2) 1000 Regions Visited (5) 1000 Robots Destroyed (22) 110 Value Destroyed (536) 536 Prototype IDs (23) 460 Alien Tech Used (0) 0 Bonus (300) 300 TOTAL SCORE: 3406 Bonus ------- Aligned with FarCom 300 Cogmind --------- Core Integrity 166/550 Matter 300/300 Energy 100/100 System Corruption 0% Temperature Cool (9) Movement Treading (160) Location -8/Materials Parts ------- > --- POWER (1) -------- (None) > --- PROPULSION (4) --- Light Treads Light Treads Improved Treads > --- UTILITY (4) ------ Large Storage Unit Large Storage Unit Large Storage Unit Melee Analysis Suite > --- WEAPON (2) ------- Mace Great Maul > --- INVENTORY (22) --- Large Storage Unit Superbattery (2000) Melee Analysis Suite Melee Analysis Suite Weapon Shielding Improved Weapon Shielding Improved Light Armor Plating Hacking Suite Hacking Suite Hacking Suite System Shield System Shield Supersonic Drone Bay (1/1) Army-in-a-Box (30/30) Rocket Launcher Datajack Mace Peak State ------------ > --- POWER ------------ Light Nuclear Core > --- PROPULSION ------- Aluminum Leg Aluminum Leg > --- UTILITY ---------- Large Storage Unit Large Storage Unit Large Storage Unit Melee Analysis Suite > --- WEAPON ----------- Heavy Mace Great Maul > --- INVENTORY -------- Large Storage Unit Superbattery Melee Analysis Suite Melee Analysis Suite Melee Analysis Suite Weapon Shielding Improved Weapon Shielding Improved Light Armor Plating Hacking Suite Hacking Suite System Shield Supersonic Drone Bay Army-in-a-Box Rocket Launcher Datajack Mace Mace [Rating: 27] Favorites ----------- Power Ion Engine Engine Ion Engine Power Core Light Nuclear Core Propulsion Aluminum Leg Treads Light Treads Leg Aluminum Leg Utility Large Storage Unit Device Heat Sink Storage Large Storage Unit Processor Melee Analysis Suite Weapon Small Laser Energy Gun Small Laser Ballistic Gun Light Assault Rifle Impact Weapon Great Maul Build | -11 -10 -10 -10 -9 -8 ------- Run | Scr Mat Min Exi Min Mat Slots Evolved 4 | . . . . . 4 Power . | . . . . . . Propulsion 2 | . . . . . 2 Utility 2 | . . . . . 2 Weapon . | . . . . . . Parts Attached 29 | 6 1 1 2 . 19 Power 3 | 1 . . . . 2 Engine 2 | 1 . . . . 1 Core 1 | . . . . . 1 Reactor . | . . . . . . Propulsion 8 | 2 . . . . 6 Treads 4 | . . . . . 4 Leg 4 | 2 . . . . 2 Wheel . | . . . . . . Hover . | . . . . . . Flight . | . . . . . . Utility 9 | 1 1 . 2 . 5 Device 3 | . 1 . . . 2 Storage 5 | 1 . . 2 . 2 Processor 1 | . . . . . 1 Hackware . | . . . . . . Protection . | . . . . . . Artifact . | . . . . . . Weapon 9 | 2 . 1 . . 6 Energy Gun 2 | 2 . . . . . Energy Cannon . | . . . . . . Ballistic Gun 1 | . . 1 . . . Ballistic Cannon . | . . . . . . Launcher . | . . . . . . Special Weapon . | . . . . . . Impact Weapon 6 | . . . . . 6 Slashing Weapon . | . . . . . . Piercing Weapon . | . . . . . . Special Melee Weapon . | . . . . . . Unidentified Prototypes . | . . . . . . Parts Lost 9 | . . . . . 9 Power 2 | . . . . . 2 Propulsion 5 | . . . . . 5 Utility . | . . . . . . Weapon 2 | . . . . . 2 Highest Loss Streak 3 | . . . . . 3 Average Slot Usage (%) 91 | . 99 100 100 100 79 Engine 10 | . 14 14 14 14 4 Core 1 | . . . . . 2 Treads 1 | . . . . . 3 Leg 23 | . 28 28 28 28 17 Device 6 | . 13 14 9 . 2 Storage 21 | . 14 14 18 28 27 Processor 2 | . . . . . 6 Energy Gun 11 | . 28 25 14 14 . Ballistic Gun 4 | . . 2 14 14 . Impact Weapon 6 | . . . . . 14 Naked Turns . | . . . . . . Heaviest Build 60 | 11 12 12 39 39 60 Greatest Support 63 | 20 20 20 20 20 63 Greatest Overweight (x) 17 | 1 . . 1 1 17 Average Overweight (x) . | . . . . 1 1 Largest Inventory Capacity 22 | 6 6 6 16 16 22 Average Capacity 14 | 5 6 6 10 16 22 Most Carried 22 | . 6 6 16 16 22 Average Carried 13 | . 3 5 9 16 20 Final Capacity 22 | 6 6 6 16 16 22 Final Carried 22 | . 6 5 16 16 22 Class Distribution -------------------- 57% | Mutant 42% | Hauler-Mutant Dominant Class ---------------- Mutant | -10/Materials Mutant | -10/Mines Mutant | -10/Exiles Mutant | -9/Mines Hauler-Mutant | -8/Materials Resources | -11 -10 -10 -10 -9 -8 ----------- Run | Scr Mat Min Exi Min Mat Matter Collected 488 | 260 10 10 . 33 175 Remotely . | . . . . . . Salvage Created 829 | . 26 198 . 104 501 Parts 41 | . 5 17 . 4 15 Haulers Intercepted . | . . . . . . Recyclers Shooed 1 | . . 1 . . . Parts Field Recycled . | . . . . . . Retrieved Matter . | . . . . . . Parts Self-Destructed . | . . . . . . Prevented . | . . . . . . Kills | -11 -10 -10 -10 -9 -8 ------- Run | Scr Mat Min Exi Min Mat Combat Hostiles Destroyed 13 | . . 3 . 2 8 Melee 3 | . . . . . 3 Guns 7 | . . 3 . 2 2 Classes Destroyed 10 | . 1 5 . 1 3 Worker 3 | . . 1 . . 2 Builder 1 | . . 1 . . . Tunneler 1 | . . 1 . . . Recycler 1 | . . 1 . . . Mechanic 1 | . . . . . 1 Operator 2 | . 2 . . . . Swarmer 3 | . . 3 . . . Grunt 6 | . . . . 2 4 Brawler 1 | . . . . . 1 Sentry 3 | . . . . . 3 Best Kill Streak 4 | . 1 4 . 2 2 Combat Bots Only 3 | . . 3 . 2 2 Max Kills in Single Turn 2 | . 1 2 . 1 1 Gunslinging . | . . . . . . Exploded . | . . . . . . Melee 1 | . . . . . 1 Uniques/NPCs Destroyed . | . . . . . . Combat | -11 -10 -10 -10 -9 -8 -------- Run | Scr Mat Min Exi Min Mat Damage Taken 1703 | . . 181 . 97 1425 Core 435 | . . 41 . 10 384 Absorbed by Shields . | . . . . . . Core Remaining (%) 89 | 100 . . . 79 . Volleys Fired 51 | . 7 16 . 16 12 Largest 2 | . 2 2 . 2 2 Hottest 80 | . 80 80 . 60 60 Shots Fired 94 | . 14 32 . 32 16 Gun 94 | . 14 32 . 32 16 Cannon . | . . . . . . Launcher . | . . . . . . Special . | . . . . . . Kinetic 28 | . . . . 16 12 Thermal 66 | . 14 32 . 16 4 Explosive . | . . . . . . Electromagnetic . | . . . . . . Robot Hit Streak 13 | . 7 13 . 10 7 Robot Miss Streak 4 | . 4 2 . 3 2 Penetration Max . | . . . . . . Secondary Targets 2 | . . 1 . . 1 Max Gunslinging Chain 1 | . . 1 . . 1 Shots Hit Robots 115 | . 9 20 . 22 64 Core Hits 31 | . 4 8 . 7 12 Critical Hits . | . . . . . . Critical Kills . | . . . . . . Critical Parts Destroyed . | . . . . . . Melee Attacks 61 | . . . . . 61 Impact 61 | . . . . . 61 Slashing . | . . . . . . Piercing . | . . . . . . Sneak Attacks 3 | . . . . . 3 Combat Hostiles . | . . . . . . Follow-up Attacks 10 | . . . . . 10 Damage Inflicted 2058 | . 96 148 . 222 1592 Guns 563 | . 96 148 . 222 97 Cannons . | . . . . . . Explosions . | . . . . . . Melee 1495 | . . . . . 1495 Ramming . | . . . . . . Kinetic 166 | . . . . 100 66 Thermal 397 | . 96 148 . 122 31 Explosive . | . . . . . . Electromagnetic . | . . . . . . Impact 1495 | . . . . . 1495 Slashing . | . . . . . . Piercing . | . . . . . . Highest Corruption . | . . . . . . Average Corruption . | . . . . . . Corruption Purged . | . . . . . . Overload Shots . | . . . . . . Overflow Damage 187 | . . . . . 187 Projectiles . | . . . . . . Explosions . | . . . . . . Melee 187 | . . . . . 187 Knockbacks 6 | . . . . . 6 Impact 6 | . . . . . 6 Kinetic . | . . . . . . Secondary . | . . . . . . Self-Inflicted Damage . | . . . . . . Shots . | . . . . . . Rammed . | . . . . . . Targets Rammed . | . . . . . . Kicked . | . . . . . . Crushed . | . . . . . . Highest Temperature 108 | . . . . 108 3 Average Temperature 48 | . . . . 49 3 Received Heat Transfer 687 | . . . . 57 630 Siege Activations . | . . . . . . Robots Corrupted . | . . . . . . Combat Hostiles . | . . . . . . Parts Fried 3 | . . . . . 3 Impact Corruptions 10 | . . . . . 10 Robots Melted . | . . . . . . Combat Hostiles . | . . . . . . Parts Melted 1 | . . 1 . . . Heat Transferred 925 | . 225 350 . 275 75 Parts Sabotaged . | . . . . . . Parts Stolen . | . . . . . . Parts Stripped . | . . . . . . Power Chain Reactions . | . . . . . . Missiles Intercepted . | . . . . . . Alert | -11 -10 -10 -10 -9 -8 ------- Run | Scr Mat Min Exi Min Mat Peak Influence 141 | . 25 99 . 65 141 Initial 25 | . . 9 . . 25 Average 43 | . 12 37 . 13 59 Maximum Alert Level . | . . . . . . Low Security (%) 100 | 100 100 100 . 100 100 Level 1 . | . . . . . . Level 2 . | . . . . . . Level 3 . | . . . . . . Level 4 . | . . . . . . Level 5 . | . . . . . . High Security . | . . . . . . Max Security . | . . . . . . Squads Dispatched 4 | . 2 . . . 2 Investigation 1 | . . . . . 1 Extermination . | . . . . . . Reinforcement 3 | . 2 . . . 1 Assault . | . . . . . . Garrison . | . . . . . . Intercept . | . . . . . . Construction Impeded . | . . . . . . Haulers Reinforced . | . . . . . . Stealth | -11 -10 -10 -10 -9 -8 --------- Run | Scr Mat Min Exi Min Mat Distress Signals 3 | . . . . . 3 Communications Jammed . | . . . . . . Distress Signals . | . . . . . . Times Spotted 31 | . 3 3 . 3 22 Peak Tracking Total 5 | . 1 2 . 3 5 Tactical Retreats 3 | . . . . 1 2 Traps | -11 -10 -10 -10 -9 -8 ------- Run | Scr Mat Min Exi Min Mat Traps Triggered 1 | . . . . . 1 Indirectly . | . . . . . . Trap Hack Attempts . | . . . . . . Triggered . | . . . . . . Disarmed . | . . . . . . Reprogrammed . | . . . . . . Reused . | . . . . . . Traps Extracted . | . . . . . . Installed . | . . . . . . Triggered . | . . . . . . Machines | -11 -10 -10 -10 -9 -8 ---------- Run | Scr Mat Min Exi Min Mat Machines Disabled . | . . . . . . Max in Single Turn . | . . . . . . Machines Sabotaged . | . . . . . . Garrisons Compromised . | . . . . . . Overloaded Fab Kills . | . . . . . . Fab Network Shutdowns . | . . . . . . Hacking | -11 -10 -10 -10 -9 -8 --------- Run | Scr Mat Min Exi Min Mat Machines Accessed 1 | . . . 1 . . Terminals . | . . . . . . Fabricators . | . . . . . . Repair Stations . | . . . . . . Recycling Units . | . . . . . . Scanalyzers . | . . . . . . Garrison Access . | . . . . . . Total Hacks 1 | . . . 1 . . Successful 1 | . . . 1 . . Failed . | . . . . . . Catastrophic . | . . . . . . Database Lockouts . | . . . . . . Manual 1 | . . . 1 . . Terminals . | . . . . . . Fabricators . | . . . . . . Repair Stations . | . . . . . . Recycling Units . | . . . . . . Scanalyzers . | . . . . . . Garrison Access . | . . . . . . Terminal Hacks 1 | . . . 1 . . EX-Prototype ID Bank 1 | . . . 1 . . Fabricator Hacks . | . . . . . . Repair Station Hacks . | . . . . . . Recycling Unit Hacks . | . . . . . . Scanalyzer . | . . . . . . Garrison Access Hacks . | . . . . . . Unauthorized Hacks . | . . . . . . Terminals . | . . . . . . Fabricators . | . . . . . . Repair Stations . | . . . . . . Recycling Units . | . . . . . . Scanalyzers . | . . . . . . Garrison Access . | . . . . . . Data Cores Recovered . | . . . . . . Used . | . . . . . . Hacking Detections . | . . . . . . Full Trace Events . | . . . . . . Feedback Events . | . . . . . . Feedback Blocked . | . . . . . . Robot Schematics Acquired . | . . . . . . Robots Built . | . . . . . . Matter . | . . . . . . Time . | . . . . . . Total Robot Build Rating . | . . . . . . Part Schematics Acquired . | . . . . . . Parts Built . | . . . . . . Matter . | . . . . . . Time . | . . . . . . Total Part Build Rating . | . . . . . . Parts Repaired . | . . . . . . Time . | . . . . . . Parts Recycled . | . . . . . . Recycled Matter . | . . . . . . Retrieved Matter . | . . . . . . Retrieved Components . | . . . . . . Parts Scanalyzed . | . . . . . . Part Schematics Acquired . | . . . . . . Parts Damaged . | . . . . . . Bothacking | -11 -10 -10 -10 -9 -8 ------------ Run | Scr Mat Min Exi Min Mat Used RIF Installer . | . . . . . . Robots Hacked . | . . . . . . Non-combat . | . . . . . . Combat . | . . . . . . Robot Hacks Applied . | . . . . . . Relay Couplers Released . | . . . . . . Robots Rewired . | . . . . . . Allies Hacked . | . . . . . . Hacks Repelled . | . . . . . . Allies | -11 -10 -10 -10 -9 -8 -------- Run | Scr Mat Min Exi Min Mat Total Allies . | . . . . . . Largest Group . | . . . . . . Highest-Rated Group . | . . . . . . Highest-Rated Ally . | . . . . . . Total Orders . | . . . . . . Ally Attacks . | . . . . . . Total Damage . | . . . . . . Kills . | . . . . . . Allies Corrupted . | . . . . . . Allies Melted . | . . . . . . Intel | -11 -10 -10 -10 -9 -8 ------- Run | Scr Mat Min Exi Min Mat Robot Analysis Total . | . . . . . . Derelict Logs Recovered 1 | . . 1 . . . Drone Launches . | . . . . . . Drone Recoveries . | . . . . . . Exploration | -11 -10 -10 -10 -9 -8 ------------- Run | Scr Mat Min Exi Min Mat Turns Passed 2315 | 44 204 404 517 171 975 Spaces Moved 1303 | 32 147 294 365 85 380 Core 9 | 8 . . . . 1 Treads 89 | . . . . . 89 Legs 1205 | 24 147 294 365 85 290 Wheels . | . . . . . . Hover . | . . . . . . Flight . | . . . . . . Fastest Speed 50 | 50 120 120 120 150 150 Average Speed 141 | 111 120 120 138 150 169 Slowest Speed 900 | 150 120 120 150 150 900 Overloaded Moves . | . . . . . . Propulsion Burnouts . | . . . . . . Robots Hopped . | . . . . . . Cave-ins Triggered . | . . . . . . Exploration Rate (%) 34 | 3 24 51 70 30 31 Regions Visited 5 Branch Regions 3 Pre-discovered Areas . | . . . . . . Known Exits Taken . | . . . . . . Unknown Exits Taken 5 | 1 1 1 1 1 . Scrap Searched 2 | . . 1 . 1 . Spaces Dug 1 | . . . . . 1 Terrain Destroyed 1 | . . . . . 1 Melee 1 | . . . . . 1 Projectile . | . . . . . . AOE . | . . . . . . Terrain Rammed . | . . . . . . Walls Destroyed . | . . . . . . Machines Disabled . | . . . . . . Actions | -11 -10 -10 -10 -9 -8 --------- Run | Scr Mat Min Exi Min Mat Total 1589 | 37 160 315 376 100 601 Wait 110 | . . 1 . . 109 Move 1298 | 31 146 293 364 84 380 Hop . | . . . . . . Pick Up 31 | . 6 1 7 . 17 Fast Attach 17 | 6 1 1 . . 9 Attach 5 | . . . 1 . 4 Detach 1 | . . . 1 . . Swap 7 | . . . 1 . 6 Drop 19 | . . 3 2 . 14 Fire 51 | . 7 16 . 16 12 Melee 50 | . . . . . 50 Ram . | . . . . . . Kick . | . . . . . . Crush . | . . . . . . Escape Stasis . | . . . . . . Rewire . | . . . . . . Trap . | . . . . . . Miscellaneous . | . . . . . . Route ------- -11/Scrapyard -10/Materials -10/Mines (discovered 3 exits: [*Mat x2] / *Exi) -10/Exiles -9/Mines -8/Materials (discovered 1 exit: [*Fac]) History --------- Turn | Location | Event 19 | -11/Scrapyard | Discovered new exit (range 16) 45 | -11/Scrapyard | Entered Materials 175 | -10/Materials | Discovered new exit (range 7) 249 | -10/Materials | Entered Mines 304 | -10/Mines | Build established: Mutant 317 | -10/Mines | Learned Materials stockpile data 318 | -10/Mines | Discovered new exit (range 8) 438 | -10/Mines | Discovered new exit (range 8) 453 | -10/Mines | Received a Rocket Launcher from a helpful Derelict 648 | -10/Mines | Deemed a non-threat by the Exiles lab entrance 648 | -10/Mines | Discovered new exit (range 5) 653 | -10/Mines | Entered Exiles 682 | -10/Exiles | Met 8R-AWN 703 | -10/Exiles | Met EX-HEX 765 | -10/Exiles | Met EX-DEC 930 | -10/Exiles | Met EX-BIN 951 | -10/Exiles | Aligned with FarCom system 953 | -10/Exiles | Given EX-Vault access code 996 | -10/Exiles | Opened EX-Vault 1007 | -10/Exiles | Found Superbattery 1009 | -10/Exiles | Found Army-in-a-Box 1018 | -10/Exiles | Found Supersonic Drone Bay 1052 | -10/Exiles | Warned to stay clear of 0b10 Research branches 1154 | -10/Exiles | Discovered new exit (range 14) 1170 | -10/Exiles | Stole three prototypes: Superbattery, Army-in-a-Box, Supersonic Drone Bay 1170 | -10/Exiles | Entered Mines 1171 | -9/Mines | Assembled infested the area 1278 | -9/Mines | Discovered new exit (range 11) 1341 | -9/Mines | Entered Materials 1341 | -8/Materials | Evolved 4 slots: Propulsion x2, Utility x2 1635 | -8/Materials | Build established: Hauler-Mutant 1894 | -8/Materials | Lost 3 parts (1p2n) 2190 | -8/Materials | Core integrity fell below 50% 2220 | -8/Materials | Lost 3 parts (1p2n) 2287 | -8/Materials | Discovered new exit (range 15) 2316 | -8/Materials | Self-destructed Last Messages --------------- 02217_ Y-45 Defender system terminally corrupted. 02228_ Acquired Lgt. Treads. 02231_ Acquired 10 matter. 02235_ Acquired Lgt. Treads. 02241_ R-06 Scavenger collects Heat Sink. 02244_ Acquired Imp. Treads. 02249_ Acquired 20 matter. 02287_ EXIT=FOUND 02289_ Sneak attack on K-01 Serf. 02289_ Destroyed Wheel. 02289_ K-01 Serf system corrupted by crushing effect. 02289_ K-01 Serf knocked back. 02290_ K-01 Serf system terminally corrupted. 02297_ O-16 Technician: "IFF HANDSHAKE FAILED. SECURING TERMINAL." 02299_ W-25 Informer sends out distress signal. 02302_ Penetrated by Slug. 02303_ ALERT: Hostiles spotted, dispatching reinforcements to Terminal M001. 02311_ Sneak attack on K-01 Serf. 02311_ K-01 Serf destroyed. Map ----- +----------------------------------------------------+ | ???????????????????????????????????????? | | ???????????????????????????????????????? | | ???????????????????????????????????????? | | ???????????????????????????????????????? | | ???????????????????????????????????????? | | ???????????????????????????????????????? | | ??????????????????????Y????????????????? | | ???????????????????????????????????????? | | ####???????????????????????????????????? | | #???????????????????????????????????? | | / #???????????????????????????????????? | | ##### ????????????????????? | | " + ????????????????????? | | "" #########???# ?????????????????????? | | "" #???????????# #????????????????????? | | "" #???????????# #????????????????????? | | " ##??????????# #????????????????????? | | #############??# #????????????????????? | | # % #??# #????????????????????? | | #%""" !! #??# #????????????????????? | | # """ ! %#??# #????????????????????? | | # """ #??# ####?????????????????? | | # ##?# g ########??????????? | | # "T" #?# g #??????????? | | # ^ """ ##?# g< #??????????? | | ###+############ =@ #??????????? | | % ########??????????? | | ########## ##?????????????????? | | #????????#w #??????????????????? | | ########????????# #??????????????????? | | ????????????????# #??????????????????? | | ????????????????# h#??????????????????? | | ????????????????# #??????????????????? | | ????????????????# #??????????????????? | | ????????????????# #??????????????????? | | ????????????????# #??????????????????? | | ????????????????# #??????????????????? | | ????????????????# #??????????????????? | | ??????]?????????# #??????????????????? | | ????????????????# #??????????????????? | | ????????????????# #??????????????????? | | ????????????????? ???????????????????? | | ???????????????????????????????????????? | | ???????????????????????????????????????? | | ???????????????????????????????????????? | | ???????????????????????????????????????? | | ???????????????????????????????????????? | | ???????????????????????????????????????? | | ???????????????????????????????????????? | | ???????????????????????????????????????? | +----------------------------------------------------+ Best States ------------- Heat Dissipation 45 Energy Generation 14 Energy Capacity 250 Matter Stores 300 Matter Capacity 300 Sight Range 16 Terrain Scan Density 10 Evasion (%) 40 Melee Accuracy 5 Recoil Reduction 3 Item Schematics ----------------- None Robot Schematics ------------------ None Fabricated ------------ Nothing Alien Tech Used ----------------- None Achievements -------------- None Challenges ------------ None Game ------ Seed SpikedUltimateWarhead Manual? 0 Play Time 00:15:09 Cumulative 231.6 hours Start 2021.05.30 @ 10:43:51 End 2021.05.30 @ 10:54:26 Sessions 1 Manual Loads 0 Difficulty Rogue Special Mode None Game No. 440 Rogue 285 Adventurer 148 Explorer 7 Win Type - Total 9 Types 7/0/1/1/0/0/0/0/0 Lore% 75 Gallery% 87 Achievement% 65 Wizard Run 0 Options --------- ASCII 0 Keyboard 0 Movement Numpad Keybinds 0 Fullscreen 1 Font 18/CogNarrow Map View 76x50 Tactical HUD 1 Map Filters NONE Filters NONE Steam 1 RUN: eb4aec38-815a-4ab8-aacb-0d17c640e620